bitfinex/quotes_BTCUSD_20251215
["timestamp","ask_amount","ask_price","bid_price","bid_amount"]
[1765825580101,0.24281732,86485.0,86483.0,0.04525]
[1765825580263,0.24281841,86485.0,86482.0,0.11804728]
[1765825580476,0.01156403,86475.0,86468.0,0.01156497]
[1765825580682,0.24284474,86475.0,86474.0,0.2907]
[1765825580854,0.23129409,86470.0,86469.0,0.01848]
[1765825581057,0.24283161,86480.0,86474.0,0.03344]
[1765825581260,0.23126919,86480.0,86478.0,0.04525]
[1765825581463,0.01156243,86487.0,86482.0,0.23125952]
[1765825581710,0.03213036,86500.0,86482.0,0.23125952]
[1765825581711,0.23125515,86485.0,86483.0,0.13491441]
[1765825582088,0.00054116,86484.0,86483.0,0.37773536]
[1765825582710,0.00054116,86484.0,86483.0,0.13652728]
[1765825583701,0.2317978,86484.0,86483.0,0.02009287]
[1765825585012,0.2317978,86484.0,86474.0,0.03344]
[1765825585211,0.2317978,86484.0,86470.0,0.23129183]
[1765825585212,0.01156403,86475.0,86467.0,0.11643441]
[1765825585434,0.01156376,86477.0,86470.0,0.0115647]
[1765825585435,0.0115639,86476.0,86470.0,0.0115647]
[1765825585600,0.01156363,86478.0,86468.0,0.30918]
[1765825585601,0.01156457,86471.0,86468.0,0.30918]
[1765825585800,0.23127414,86478.0,86468.0,0.30918]
[1765825585801,0.02310993,86477.0,86468.0,0.6114214]
[1765825586010,0.23129475,86470.0,86468.0,0.02009287]
[1765825586208,0.01156564,86463.0,86460.0,0.00038]
[1765825586408,0.0346753,86465.0,86461.0,0.01848]
[1765825586617,0.25,86480.0,86461.0,0.01848]
[1765825586618,0.23128774,86473.0,86469.0,0.23129623]
[1765825586828,0.24284616,86475.0,86472.0,0.04525]
[1765825587030,0.01156403,86475.0,86473.0,0.01848]
[1765825587277,0.2428346,86479.0,86474.0,0.23128339]
[1765825587481,0.01156309,86482.0,86478.0,0.01156363]
[1765825587706,0.23126875,86480.0,86478.0,0.04686287]
[1765825587868,0.23126875,86480.0,86479.0,0.14958]
[1765825588066,0.01156269,86485.0,86479.0,0.07869]
[1765825588333,0.01156309,86482.0,86479.0,0.07869]
[1765825588525,0.23126711,86481.0,86479.0,0.07869]
[1765825589147,0.23126734,86480.0,86479.0,0.07869]
[1765825589355,0.23126711,86481.0,86479.0,0.07869]
[1765825589708,0.23126734,86480.0,86479.0,0.07869]
[1765825589907,0.23126467,86481.0,86480.0,0.07089]
[1765825590229,0.23126734,86480.0,86479.0,0.03505287]
[1765825590638,0.23126734,86480.0,86479.0,0.27236728]
[1765825591053,0.23168119,86480.0,86479.0,0.27236728]
[1765825591284,0.23168119,86480.0,86479.0,0.08262287]
[1765825591470,0.23168119,86480.0,86479.0,0.00161287]
[1765825591647,0.23128339,86474.0,86473.0,0.01848]
[1765825591848,0.01256336,86480.0,86479.0,0.04938]
[1765825592123,0.23128339,86474.0,86473.0,0.42722728]
[1765825592285,0.23128134,86475.0,86473.0,0.42722728]
[1765825592511,0.0115655,86464.0,86460.0,0.00038]
[1765825592714,0.23131816,86461.0,86460.0,0.00038]
[1765825592923,0.23131816,86461.0,86460.0,0.01886]
[1765825594124,0.23131816,86461.0,86460.0,0.02086]
[1765825594332,0.23131816,86461.0,86460.0,0.01886]
[1765825594677,0.23131816,86461.0,86460.0,0.01986]
[1765825594881,0.23131816,86461.0,86460.0,0.01886]
[1765825596283,0.23131816,86461.0,86460.0,0.01986]
[1765825596486,0.35286816,86461.0,86460.0,0.00038]
[1765825596743,1.48454641,86461.0,86460.0,0.00038]
[1765825596943,0.34718835,86446.0,86445.0,0.00118704]
[1765825597186,0.43158835,86446.0,86445.0,0.00130142]
[1765825597385,0.50443835,86446.0,86445.0,0.00130142]
[1765825597592,0.2670583,86446.0,86445.0,0.00130142]
[1765825597766,0.3886083,86446.0,86445.0,0.00130142]
[1765825597970,0.3896083,86446.0,86445.0,0.00130142]
[1765825598190,0.50543835,86446.0,86445.0,0.00130142]
[1765825599197,1.65289986,86446.0,86445.0,0.00130142]
[1765825599385,0.24301616,86414.0,86413.0,0.01848]
[1765825599647,0.24301616,86414.0,86413.0,0.02020729]
[1765825599782,0.23144275,86415.0,86413.0,0.14212729]
[1765825599999,0.24301126,86416.0,86414.0,0.04938]
[1765825600346,0.01157193,86416.0,86415.0,0.04938]
[1765825601004,0.24299879,86421.0,86415.0,0.05099287]
[1765825601220,0.24299879,86421.0,86416.0,0.01157193]
[1765825601446,0.24299879,86421.0,86415.0,0.05099287]
[1765825601447,0.24300791,86418.0,86415.0,0.05099287]
[1765825601811,0.23143594,86417.0,86415.0,0.05099287]
[1765825602038,0.01157166,86418.0,86415.0,0.05099287]
[1765825602039,0.24300694,86418.0,86415.0,0.00161287]
[1765825602251,0.25454738,86417.0,86416.0,0.01848]
[1765825602446,0.23143745,86417.0,86416.0,0.01848]
[1765825602676,0.23144397,86414.0,86413.0,0.00011442]
[1765825602882,0.39597402,86414.0,86413.0,0.00011442]
[1765825603094,0.46882402,86414.0,86413.0,0.00011442]
[1765825604176,0.28014397,86414.0,86413.0,0.00011442]
[1765825604375,0.46932512,86414.0,86413.0,0.00011442]
[1765825604877,0.35299397,86414.0,86413.0,0.00011442]
[1765825605086,0.35299397,86414.0,86413.0,0.00113412]
[1765825606141,0.23144397,86414.0,86413.0,0.00113412]
[1765825606348,0.23444397,86414.0,86413.0,0.00113412]
[1765825607565,0.35299397,86414.0,86413.0,0.00113412]
[1765825607763,0.23144397,86414.0,86413.0,0.00113412]
[1765825607975,0.002,86414.0,86413.0,0.05212699]
[1765825608178,0.01156818,86444.0,86441.0,0.01156858]
[1765825608370,0.01156697,86453.0,86443.0,0.00161287]
[1765825608578,0.01156778,86447.0,86446.0,0.00999399]
[1765825608735,0.01156751,86449.0,86446.0,0.01160686]
[1765825608932,0.01156711,86452.0,86449.0,0.01156751]
[1765825609136,0.2544523,86452.0,86449.0,0.01156751]
[1765825609357,0.24290948,86452.0,86448.0,0.23135239]
[1765825609681,0.24290948,86452.0,86447.0,0.01156778]
[1765825609682,0.01156724,86451.0,86447.0,0.01156778]
[1765825609885,0.23135387,86448.0,86446.0,0.00161287]
[1765825610374,0.01156737,86450.0,86447.0,0.2429234]
[1765825610584,0.01156737,86450.0,86438.0,0.00999399]
[1765825610585,0.23135377,86448.0,86438.0,0.00999399]
[1765825610789,0.24294751,86439.0,86438.0,0.01010841]
[1765825610994,0.01156858,86441.0,86438.0,0.09115026]
[1765825611204,0.02310993,86441.0,86439.0,0.2907]
[1765825611551,0.2429379,86442.0,86439.0,0.53525783]
[1765825611753,0.23137234,86441.0,86439.0,0.29231287]
[1765825612266,0.01156778,86447.0,86446.0,0.002]
[1765825612471,0.24292374,86447.0,86446.0,0.002]
[1765825612669,0.01156778,86447.0,86443.0,0.01156831]
[1765825612876,0.04151923,86493.0,86442.0,0.24293616]
[1765825612877,0.01156671,86455.0,86451.0,0.01156724]
[1765825613280,0.24290415,86454.0,86452.0,0.01848]
[1765825613488,0.01156751,86449.0,86444.0,0.11643441]
[1765825613685,0.24293657,86443.0,86441.0,0.2907]
[1765825613804,0.01156751,86449.0,86445.0,0.01848]
[1765825614007,0.24291525,86450.0,86446.0,0.12800232]
[1765825614206,0.242918,86449.0,86446.0,0.01156791]
[1765825614403,0.242918,86449.0,86446.0,0.12800232]
[1765825614691,0.01156724,86451.0,86448.0,0.04938]
[1765825614880,0.01156764,86448.0,86445.0,0.02009287]
[1765825615187,0.01156737,86450.0,86447.0,0.23135523]
[1765825615393,0.23135625,86447.0,86445.0,0.02009287]
[1765825615512,0.01156751,86449.0,86445.0,0.03166091]
[1765825615721,0.23135562,86447.0,86445.0,0.02009287]
[1765825615943,0.01156737,86450.0,86445.0,0.03166091]
[1765825616141,0.24292077,86448.0,86447.0,0.001]
[1765825616342,0.01156764,86448.0,86447.0,0.001]
[1765825616567,0.01156671,86455.0,86451.0,0.01156724]
[1765825616840,0.0115659,86461.0,86456.0,0.23133097]
[1765825616841,0.24288901,86460.0,86456.0,0.23133097]
[1765825617087,0.23132403,86459.0,86457.0,0.06786]
[1765825617301,0.23131816,86461.0,86457.0,0.08103931]
[1765825617522,0.0115659,86461.0,86458.0,0.11643441]
[1765825617659,0.28002619,86458.0,86457.0,0.01848]
[1765825618005,0.23132619,86458.0,86457.0,0.01848]
[1765825618239,0.23103487,86458.0,86457.0,0.01848]
[1765825619178,0.23203487,86458.0,86457.0,0.01848]
[1765825619796,0.001,86458.0,86457.0,0.25844728]
[1765825620141,0.00118689,86467.0,86466.0,0.11643441]
[1765825620435,0.00118689,86467.0,86466.0,0.16581441]
[1765825620592,0.00118689,86467.0,86466.0,0.05099287]
[1765825620823,0.00118689,86467.0,86466.0,0.23996728]
[1765825621363,0.00130118,86467.0,86466.0,0.23996728]
[1765825621565,0.00130118,86467.0,86466.0,0.12353287]
[1765825622109,0.23131816,86461.0,86460.0,0.03476]
[1765825622315,0.03379,86458.0,86457.0,0.01848]
[1765825622558,0.23132351,86459.0,86457.0,0.01848]
[1765825623052,0.23134789,86450.0,86448.0,0.03476]
[1765825623256,0.24288252,86462.0,86458.0,0.29222201]
[1765825623465,0.00130118,86467.0,86464.0,0.11643441]
[1765825623466,0.01156537,86465.0,86464.0,0.11643441]
[1765825623671,0.01156537,86465.0,86461.0,0.00161287]
[1765825623672,0.23131549,86462.0,86461.0,0.00161287]
[1765825624141,0.23131549,86462.0,86461.0,0.02009287]
[1765825625424,0.01156711,86452.0,86451.0,0.2907]
[1765825625642,0.01156711,86452.0,86451.0,0.01848]
[1765825625788,0.24290408,86455.0,86451.0,0.14203287]
[1765825625789,0.01156684,86454.0,86451.0,0.14203287]
[1765825625986,0.23134224,86452.0,86451.0,0.00161287]
[1765825626184,0.23134224,86452.0,86451.0,0.02009287]
[1765825626614,0.23134224,86452.0,86451.0,0.14203287]
[1765825627224,0.23134224,86452.0,86451.0,0.02009287]
[1765825627423,0.23134224,86452.0,86451.0,0.01848]
[1765825627625,0.2313413,86453.0,86451.0,0.06781]
[1765825627826,0.23134224,86452.0,86451.0,0.06881]
[1765825628026,0.23134224,86452.0,86451.0,0.06781]
[1765825628354,0.23134224,86452.0,86451.0,0.01848]
[1765825628565,0.23134224,86452.0,86451.0,0.01948]
[1765825628768,0.23134224,86452.0,86451.0,0.01848]
[1765825629135,0.23134224,86452.0,86451.0,0.01948]
[1765825629334,0.23134224,86452.0,86451.0,0.01848]
[1765825630561,0.23134224,86452.0,86437.0,0.2432061]
[1765825630562,0.23137971,86438.0,86437.0,0.00025486]
[1765825630705,0.23137971,86438.0,86437.0,0.02034773]
[1765825630910,0.01156871,86440.0,86437.0,0.02034773]
[1765825631107,0.23137708,86439.0,86437.0,0.02034773]
[1765825631352,0.23137971,86438.0,86437.0,0.09295773]
[1765825631933,0.23137971,86438.0,86437.0,0.02234773]
[1765825632333,1.4448635,86438.0,86437.0,0.00025486]
[1765825632646,1.56069355,86438.0,86437.0,0.00225486]
[1765825633421,1.56069355,86438.0,86409.0,0.01848]
[1765825633422,0.23145469,86410.0,86409.0,0.01848]
[1765825633617,0.25077469,86410.0,86409.0,0.01859442]
[1765825633843,0.23145469,86410.0,86409.0,0.01859442]
[1765825635585,0.23145469,86410.0,86409.0,0.06953729]
[1765825635912,0.23145469,86410.0,86409.0,0.1366417]
[1765825636352,0.01157059,86426.0,86418.0,0.12800607]
[1765825636561,0.06902,86453.0,86428.0,0.01157032]
[1765825636562,0.01156938,86435.0,86428.0,0.01157032]
[1765825636762,0.2429595,86435.0,86434.0,0.11804728]
[1765825637073,0.24293056,86445.0,86443.0,0.11643441]
[1765825637477,0.24293056,86445.0,86444.0,0.04933]
[1765825637819,0.24293056,86445.0,86443.0,0.11643441]
[1765825638237,0.24393056,86445.0,86443.0,0.11643441]
[1765825638652,0.24293056,86445.0,86443.0,0.11643441]
[1765825638809,0.24393056,86445.0,86443.0,0.11643441]
[1765825639014,0.17764703,86445.0,86443.0,0.11804728]
[1765825639215,0.2313359,86455.0,86443.0,0.11804728]
[1765825639216,0.03379,86472.0,86452.0,0.11643441]
[1765825639522,0.24289393,86458.0,86457.0,0.11643441]
[1765825639745,0.23133689,86454.0,86453.0,0.01848]
[1765825640153,0.23133433,86455.0,86453.0,0.06781]
[1765825640375,0.23133433,86455.0,86453.0,0.02009287]
[1765825640952,0.001,86454.0,86453.0,0.02009287]
[1765825641437,0.23133433,86455.0,86453.0,0.02009287]
[1765825641629,0.23233433,86455.0,86453.0,0.01848]
[1765825641770,0.23133433,86455.0,86453.0,0.01848]
[1765825642318,0.11962,86454.0,86453.0,0.01848]
[1765825642523,0.0506,86454.0,86453.0,0.01848]
[1765825642728,0.001,86454.0,86453.0,0.01848]
[1765825643295,0.23133433,86455.0,86453.0,0.01848]
[1765825643514,0.23133433,86455.0,86454.0,0.04933]
[1765825643713,0.23233433,86455.0,86454.0,0.05094287]
[1765825643896,0.23133433,86455.0,86454.0,0.01160686]
[1765825644937,0.001,86455.0,86454.0,0.13354686]
[1765825647766,0.001,86455.0,86454.0,0.36488375]
[1765825648084,0.001,86455.0,86454.0,0.13354686]
[1765825649435,0.01156644,86457.0,86456.0,0.11643441]
[1765825649900,0.01156644,86457.0,86456.0,0.16576441]
[1765825650102,0.01156644,86457.0,86456.0,0.11643441]
[1765825650237,0.23133154,86456.0,86454.0,0.11804728]
[1765825650607,0.23133154,86456.0,86454.0,0.12004728]
[1765825650836,0.23133154,86456.0,86454.0,0.11804728]
[1765825651080,0.23133154,86456.0,86454.0,0.00161287]
[1765825651199,0.23133422,86455.0,86454.0,0.00161287]
[1765825651411,0.01156751,86449.0,86447.0,0.11643441]
[1765825651639,0.01156751,86449.0,86448.0,0.01844]
[1765825651839,0.24292313,86449.0,86448.0,0.01844]
[1765825652096,0.01156697,86453.0,86449.0,0.23134986]
[1765825652391,0.01156697,86453.0,86452.0,0.11643441]
[1765825652578,0.24290654,86453.0,86452.0,0.23644728]
[1765825652783,0.01156657,86456.0,86452.0,0.12001287]
[1765825653001,0.01156657,86456.0,86454.0,0.11643441]
[1765825653002,0.01156671,86455.0,86454.0,0.11643441]
[1765825653206,0.24290093,86455.0,86454.0,0.11643441]
[1765825653421,0.24290093,86455.0,86454.0,0.23483441]
[1765825654329,0.24290093,86455.0,86454.0,0.23583441]
[1765825654687,0.01156644,86457.0,86455.0,0.23133413]
[1765825654922,0.23251134,86459.0,86456.0,0.17772098]
[1765825655070,0.23251134,86459.0,86458.0,0.04972]
[1765825655071,0.24407672,86459.0,86458.0,0.04972]
[1765825655268,0.24407672,86459.0,86458.0,0.06816]
[1765825655469,0.24407672,86459.0,86458.0,0.13684]
[1765825655470,0.01275321,86459.0,86458.0,0.13684]
[1765825655678,0.00118704,86459.0,86458.0,0.48621347]
[1765825657966,0.00118704,86459.0,86458.0,0.77691347]
[1765825658916,0.23128983,86472.0,86458.0,0.77691347]
[1765825658917,0.25,86500.0,86458.0,0.77691347]
[1765825659124,0.25,86500.0,86499.0,0.08313]
[1765825659125,0.00011429,86500.0,86499.0,0.08313]
[1765825659334,0.00011429,86500.0,86499.0,0.53343893]
[1765825659525,0.00011429,86500.0,86499.0,0.57899728]
[1765825660019,0.00241924,86500.0,86499.0,0.57899728]
[1765825660510,0.00141924,86500.0,86499.0,0.57899728]
[1765825660715,0.00141924,86500.0,86499.0,0.58199728]
[1765825660969,0.00141924,86500.0,86499.0,0.57899728]
[1765825661372,0.00141924,86500.0,86499.0,0.29231287]
[1765825661548,0.00141924,86500.0,86499.0,0.06981287]
[1765825661754,0.00141924,86500.0,86499.0,0.13849287]
[1765825661952,0.00141924,86500.0,86499.0,0.25492728]
[1765825662366,0.0002,86519.0,86518.0,0.11643441]
[1765825662574,0.00058117,86519.0,86518.0,0.13491441]
[1765825662784,0.23121119,86501.0,86500.0,0.03408]
[1765825662944,0.23121119,86501.0,86500.0,0.16899441]
[1765825663517,0.01155868,86515.0,86512.0,0.00999399]
[1765825663729,0.24330434,86519.0,86518.0,0.15051441]
[1765825664106,0.24330434,86519.0,86518.0,0.03408]
[1765825664525,0.00058117,86519.0,86518.0,0.15248]
[1765825665917,0.00058117,86519.0,86518.0,0.03408]
[1765825666363,0.24272966,86516.0,86514.0,0.03408]
[1765825666566,0.23117378,86515.0,86514.0,0.03408]
[1765825666834,0.23117378,86515.0,86500.0,0.03408]
[1765825666835,0.01155989,86506.0,86500.0,0.03408]
[1765825667103,0.23121119,86501.0,86500.0,0.44121441]
[1765825667339,0.23120893,86502.0,86501.0,0.2907]
[1765825667556,0.24276716,86503.0,86501.0,0.2907]
[1765825667927,0.24276716,86503.0,86502.0,0.04972]
[1765825668540,0.01155989,86506.0,86503.0,0.01156029]
[1765825668746,0.24275294,86508.0,86507.0,0.11643441]
[1765825669123,0.24275294,86508.0,86507.0,0.16615441]
[1765825669730,0.24275294,86508.0,86503.0,0.11804728]
[1765825669731,0.23120318,86504.0,86503.0,0.11804728]
[1765825669942,0.23120318,86504.0,86503.0,0.00161287]
[1765825670145,0.23121119,86501.0,86500.0,0.03408]
[1765825670345,0.23121119,86501.0,86500.0,0.01848]
[1765825670743,0.23121119,86501.0,86500.0,0.18463441]
[1765825670950,0.28075119,86501.0,86500.0,0.01848]
[1765825671150,0.28075119,86501.0,86470.0,0.7345288]
[1765825671151,0.01156323,86481.0,86478.0,0.15103087]
[1765825671350,0.01156309,86482.0,86481.0,0.11643441]
[1765825671686,0.24282508,86482.0,86481.0,0.15145728]
[1765825671851,0.01156296,86483.0,86481.0,0.26985728]
[1765825672058,0.2312573,86484.0,86482.0,0.1184]
[1765825672225,0.24320107,86484.0,86483.0,0.04972]
[1765825672468,0.23126199,86482.0,86481.0,0.15145728]
[1765825672671,0.31981,86510.0,86483.0,0.04972]
[1765825672888,0.23123793,86491.0,86490.0,0.11643441]
[1765825673918,0.23125664,86484.0,86483.0,0.00011429]
[1765825674293,0.23125664,86484.0,86483.0,0.00111429]
[1765825674663,0.23125664,86484.0,86483.0,0.00011429]
[1765825675187,0.35060664,86484.0,86483.0,0.00011429]
[1765825675389,1.35060664,86484.0,86483.0,0.00011429]
[1765825675803,1.46643669,86484.0,86483.0,0.00011429]
[1765825676007,1.48491669,86484.0,86483.0,0.00011429]
[1765825676435,0.23131816,86461.0,86460.0,0.01848]
[1765825676638,0.23131816,86461.0,86460.0,0.00038094]
[1765825676639,0.31573816,86461.0,86460.0,0.00038094]
[1765825677433,0.38554816,86461.0,86460.0,0.00038094]
[1765825678161,0.38654816,86461.0,86460.0,0.00038094]
[1765825679656,0.23231816,86461.0,86460.0,0.00038094]
[1765825680099,0.28185816,86461.0,86460.0,0.00038094]
[1765825680317,0.23231816,86461.0,86460.0,0.00038094]
[1765825680514,0.23131816,86461.0,86460.0,0.00038094]
[1765825680755,0.28085816,86461.0,86460.0,0.00038094]
[1765825680955,0.35066816,86461.0,86460.0,0.00038094]
[1765825681096,0.23131816,86461.0,86460.0,0.00038094]
[1765825681480,0.23131816,86461.0,86460.0,0.12039381]
[1765825681481,0.001,86461.0,86460.0,0.12039381]
[1765825681655,0.001,86461.0,86460.0,0.2599603]
[1765825681992,0.001,86461.0,86460.0,0.1303878]
[1765825682164,0.001,86461.0,86460.0,0.15122069]
[1765825682724,0.001,86461.0,86460.0,0.16970069]
[1765825682928,0.001,86461.0,86460.0,0.14944096]
[1765825683602,0.0115655,86464.0,86463.0,0.00999399]
[1765825683800,0.0115655,86464.0,86463.0,0.04501686]
[1765825684004,0.0115655,86464.0,86463.0,0.00161287]
[1765825684360,0.23131014,86464.0,86463.0,0.00161287]
[1765825684771,0.23131014,86464.0,86463.0,0.00261287]
[1765825684978,0.23131014,86464.0,86463.0,0.00161287]
[1765825685152,0.23131014,86464.0,86463.0,0.12286287]
[1765825685357,0.0115651,86467.0,86463.0,0.05101287]
[1765825685559,0.23130835,86465.0,86463.0,0.00161287]
[1765825685804,0.23130835,86465.0,86460.0,0.01886094]
[1765825685805,0.23131816,86461.0,86460.0,0.01886094]
[1765825686013,0.26619816,86461.0,86460.0,0.01886094]
[1765825686213,0.23131816,86461.0,86460.0,0.01886094]
[1765825686827,0.28071816,86461.0,86460.0,0.01886094]
[1765825686982,0.23131816,86461.0,86460.0,0.01886094]
[1765825687706,0.23131587,86462.0,86460.0,0.14172381]
[1765825687872,0.01156443,86472.0,86466.0,0.01156523]
[1765825688073,0.24286068,86470.0,86469.0,0.03341]
[1765825688389,0.24286068,86470.0,86466.0,0.00161287]
[1765825688390,0.23130211,86467.0,86466.0,0.00161287]
[1765825690140,0.24286212,86469.0,86466.0,0.11804728]
[1765825690449,0.23129409,86470.0,86467.0,0.23130168]
[1765825690661,0.11583005,86486.0,86467.0,0.23130168]
[1765825690662,0.01156229,86488.0,86485.0,0.23125356]
[1765825690860,0.00118631,86500.0,86498.0,0.23121921]
[1765825691082,0.00118631,86500.0,86499.0,0.10163]
[1765825691270,0.00118631,86500.0,86499.0,0.17509287]
[1765825691486,0.00118631,86500.0,86499.0,0.31464893]
[1765825691692,0.01155735,86525.0,86518.0,0.23116576]
[1765825691847,0.23116146,86520.0,86518.0,0.06949287]
[1765825692044,0.00031428,86519.0,86518.0,0.01848]
[1765825692247,0.01155962,86508.0,86507.0,0.11643441]
[1765825692450,0.24274872,86510.0,86509.0,0.11643441]
[1765825693032,0.23119249,86508.0,86507.0,0.13491441]
[1765825693414,0.23121387,86500.0,86499.0,0.03375]
[1765825693609,0.23121387,86500.0,86499.0,0.05223]
[1765825693843,0.23121387,86500.0,86499.0,0.01848]
[1765825694372,0.23122189,86497.0,86496.0,0.11643441]
[1765825694573,0.23122189,86497.0,86496.0,0.13491441]
[1765825694980,0.23121387,86500.0,86496.0,0.06788]
[1765825695191,0.23115326,86523.0,86509.0,0.01155949]
[1765825695400,0.03503,86536.0,86509.0,0.01155949]
[1765825695401,0.24270569,86525.0,86518.0,0.08315]
[1765825695603,0.01155775,86522.0,86518.0,0.22431385]
[1765825695880,0.01155788,86521.0,86518.0,0.29616385]
[1765825696122,0.24271776,86521.0,86518.0,0.27304728]
[1765825696355,0.23116198,86520.0,86518.0,0.27304728]
[1765825696566,0.01155895,86513.0,86511.0,0.11643441]
[1765825696735,0.24273115,86516.0,86512.0,0.23118081]
[1765825696913,0.24272414,86518.0,86513.0,0.01155895]
[1765825697118,0.01187243,86519.0,86517.0,0.0494]
[1765825697119,0.00131428,86519.0,86517.0,0.0494]
[1765825697315,0.00031428,86519.0,86518.0,0.18895098]
[1765825697574,0.00031428,86519.0,86518.0,0.23768441]
[1765825698286,0.00131428,86519.0,86518.0,0.23768441]
[1765825698682,0.00131428,86519.0,86518.0,0.23929728]
[1765825698889,0.00131428,86519.0,86518.0,0.47046304]
[1765825699245,0.00131428,86519.0,86518.0,0.11804728]
[1765825699586,0.00031428,86519.0,86518.0,0.11804728]
[1765825699787,0.00131428,86519.0,86518.0,0.11804728]
[1765825699973,0.00031428,86519.0,86518.0,0.41356287]
[1765825700168,0.0002,86547.0,86544.0,0.34753073]
[1765825700358,0.0002,86547.0,86544.0,0.4170236]
[1765825700359,0.00031428,86545.0,86544.0,0.4170236]
[1765825700556,0.00031428,86545.0,86544.0,0.4888736]
[1765825701011,0.00031428,86545.0,86544.0,0.25777728]
[1765825701153,0.00031428,86545.0,86544.0,0.02009287]
[1765825701356,0.00174546,86545.0,86544.0,0.14334287]
[1765825701556,0.00174546,86545.0,86544.0,0.25977728]
[1765825702274,0.00174546,86545.0,86544.0,0.02048]
[1765825703119,0.00174546,86545.0,86544.0,0.01848]
[1765825703334,0.00174546,86545.0,86544.0,0.01948]
[1765825703966,0.24284389,86547.0,86544.0,0.01948]
[1765825704158,0.2310921,86546.0,86544.0,0.01948]
[1765825704566,0.2310921,86546.0,86544.0,0.001]
[1765825704863,0.12318,86545.0,86544.0,0.001]
[1765825705040,0.12318,86545.0,86544.0,0.01948]
[1765825705242,0.15821,86545.0,86544.0,0.01948]
[1765825705445,0.15821,86545.0,86544.0,0.01848]
[1765825705645,0.01155815,86519.0,86518.0,0.00999399]
[1765825705854,0.01155762,86523.0,86520.0,0.00999399]
[1765825706012,0.23115508,86522.0,86520.0,0.00999399]
[1765825706528,0.24269823,86528.0,86527.0,0.11643441]
[1765825707853,0.24269823,86528.0,86520.0,0.01160686]
[1765825707854,0.23115775,86521.0,86520.0,0.01160686]
[1765825708038,0.01155668,86530.0,86528.0,0.11643441]
[1765825708235,0.01155668,86530.0,86529.0,0.11643441]
[1765825708471,0.01155668,86530.0,86525.0,0.01155735]
[1765825708472,0.23114172,86527.0,86526.0,0.11643441]
[1765825708651,0.01155668,86530.0,86526.0,0.11643441]
[1765825708652,0.24269319,86529.0,86528.0,0.11643441]
[1765825709461,0.24269319,86529.0,86528.0,0.0494]
[1765825709781,0.24269319,86529.0,86527.0,0.11643441]
[1765825710194,0.24269319,86529.0,86519.0,0.03375]
[1765825710393,0.23116309,86519.0,86518.0,0.00011428]
[1765825710596,0.28064309,86519.0,86518.0,0.00011428]
[1765825710795,0.35337309,86519.0,86518.0,0.00011428]
[1765825710994,0.46920314,86519.0,86518.0,0.00011428]
[1765825712590,0.35737309,86519.0,86518.0,0.00011428]
[1765825712782,0.35337309,86519.0,86518.0,0.00011428]
[1765825712985,0.35637309,86519.0,86518.0,0.00145904]
[1765825714357,0.35637309,86519.0,86483.0,0.30523816]
[1765825714358,0.12521,86519.0,86487.0,0.07398]
[1765825714582,0.12521,86519.0,86495.0,0.01848]
[1765825714583,0.24278155,86498.0,86495.0,0.01848]
[1765825714794,0.23122304,86497.0,86496.0,0.11643441]
[1765825715006,0.01156029,86503.0,86499.0,0.11643441]
[1765825715234,0.23121187,86501.0,86499.0,0.11643441]
[1765825715682,0.23121921,86498.0,86497.0,0.03408]
[1765825715886,0.23121765,86499.0,86497.0,0.04407399]
[1765825716460,0.23121765,86499.0,86496.0,0.00161287]
[1765825716461,0.23122189,86497.0,86496.0,0.00161287]
[1765825716697,0.28102921,86498.0,86482.0,0.03309]
[1765825716698,0.01156136,86495.0,86490.0,0.01156203]
[1765825716985,0.23124364,86489.0,86486.0,0.11643441]
[1765825717194,0.23124364,86489.0,86487.0,0.00172715]
[1765825717820,0.23124364,86489.0,86487.0,0.02020715]
[1765825718026,0.12256,86488.0,86487.0,0.01859428]
[1765825718233,0.04981,86488.0,86487.0,0.01859428]
[1765825718433,0.23124364,86489.0,86487.0,0.02059428]
[1765825718640,0.23124364,86489.0,86487.0,0.00211428]
[1765825719070,0.23124364,86489.0,86487.0,0.00011428]
[1765825719489,0.23124364,86489.0,86487.0,0.00211428]
[1765825719912,0.12256,86488.0,86487.0,0.00211428]
[1765825720764,1.42325396,86488.0,86487.0,0.00011428]
[1765825720971,1.42325396,86488.0,86487.0,0.00211428]
[1765825721176,1.52909005,86488.0,86487.0,0.00098657]
[1765825721608,1.53009005,86488.0,86487.0,0.00098657]
[1765825721811,1.52909005,86488.0,86487.0,0.00098657]
[1765825722189,1.53109005,86488.0,86487.0,0.00098657]
[1765825722573,0.23129409,86470.0,86469.0,0.01848]
[1765825722804,0.30643816,86470.0,86469.0,0.01848]
[1765825723006,0.37918816,86470.0,86469.0,0.01905306]
[1765825723955,0.37918816,86470.0,86469.0,0.00057306]
[1765825724466,0.37918816,86470.0,86469.0,0.00157306]
[1765825724593,0.37918816,86470.0,86469.0,0.00057306]
[1765825724996,0.38018816,86470.0,86469.0,0.00057306]
[1765825726285,0.61234936,86470.0,86469.0,0.00057306]
[1765825726558,0.49601821,86470.0,86469.0,0.00057306]
[1765825727217,1.49601821,86470.0,86469.0,0.00057306]
[1765825727427,1.49501821,86470.0,86469.0,0.00057306]
[1765825727874,1.49701821,86470.0,86469.0,0.00057306]
[1765825728047,1.61134936,86470.0,86469.0,0.00057306]
[1765825728177,1.49501821,86470.0,86469.0,0.00057306]
[1765825728379,1.49701821,86470.0,86469.0,0.00057306]
[1765825733484,1.38118816,86470.0,86469.0,0.00057306]
[1765825733904,0.30843816,86470.0,86469.0,0.00057306]
[1765825734331,0.38118816,86470.0,86469.0,0.00057306]
[1765825736211,0.49701821,86470.0,86469.0,0.00057306]
[1765825737629,0.23133689,86454.0,86453.0,0.01848]
[1765825737833,0.31617689,86454.0,86453.0,0.01848]
[1765825738137,0.38892689,86454.0,86453.0,0.01848]
[1765825738537,0.31617689,86454.0,86453.0,0.01848]
[1765825738958,0.38892689,86454.0,86453.0,0.01848]
[1765825739379,0.38892689,86454.0,86453.0,0.02048]
[1765825739580,0.31617689,86454.0,86453.0,0.02048]
[1765825739981,0.38892689,86454.0,86453.0,0.02048]
[1765825740855,0.38892689,86454.0,86428.0,0.06150472]
[1765825740856,0.23139042,86434.0,86428.0,0.06150472]
[1765825741074,0.23143326,86418.0,86417.0,0.06150472]
[1765825741279,0.23143326,86418.0,86415.0,0.01844]
[1765825741280,0.23143862,86416.0,86415.0,0.01844]
[1765825741414,0.28124862,86416.0,86415.0,0.01844]
[1765825741646,0.28124862,86416.0,86409.0,0.06150472]
[1765825741647,0.23144933,86412.0,86409.0,0.06150472]
[1765825741849,0.2314788,86401.0,86398.0,0.03408]
[1765825742048,0.01157327,86406.0,86400.0,0.10199381]
[1765825742049,0.01157353,86404.0,86400.0,0.10199381]
[1765825742252,0.24304809,86403.0,86401.0,0.04866]
[1765825742547,0.011573,86408.0,86401.0,0.06184681]
[1765825742751,0.01157327,86406.0,86404.0,0.06134767]
[1765825742924,0.23147612,86402.0,86401.0,0.06296054]